Workbook

Sheet Introduction
C3: Low Carbon Fuel Standard Tier 1 CI Calculator for Corn and Sorghum Ethanol (Release Date: 08/12/2024)
C4: The Tier 1 Calculator for Corn and Sorghum Ethanol (T1 CSE Calculator) offers a simplified interface for calculating the carbon intensity of starch and fiber ethanol produced from corn or sorghum feedstocks. To begin, navigate to the "Site-Specific Inputs" worksheet and enter all relevant project data. For Tier 1 pathways, a minimum of 3 months of operational data is required. Carbon Intensity (CI) results are provided on the "Pathway Summary" worksheet, along with calculated input results and finished fuel quantities. Pathway-specific Operating Conditions may be added by DEQ prior to pathway certification. The "OR-GREET4.0" worksheet contains predefined input values from the OR-GREET4.0 model. Data entered by the applicant are limited to User Input cells (see Color Key below). Additional worksheets may be added to the calculator by the applicant to document and support User Input cell values, but existing worksheets and cells containing Calculated Value or OR-GREET4.0 Input values may not be modified without DEQ approval via a Tier 2 pathway. Please note that this calculator contains macros that allow the user to hide site-specific input fields that are not relevant to a given pathway. In order for macros to function properly, the "Enable Content" button in Microsoft Excel must be selected upon opening this calculator. In order to ensure that CI calculations reflect the most recent inputs, select "Automatic" calculations from the "Calculation Options" in the "Formulas" toolbar or press F9 (if using Microsoft Excel).
D5: Color Key | F5: CFP Website Resources
D6: User Input | F6: CFP Program Overview
D7: Calculated Value | F7: Tier 1 Pathway Calculators and Instruction Manuals
D8: OR-GREET4.0 Input | F8: Tier 1 Pathway Application Process
D44: `

Sheet Site-Specific Inputs
B2: Section 1: Applicant Information | E2: Section 4: Monthly Operational Data
B3: 1.1 Application Number | F3: Feedstocks | T3: Process Energy | Y3: Coproducts
B4: 1.2 Company Name | F4: Corn | M4: Sorghum | T4: Methane | V4: Alternative Fuels | W4: Electricity | Y4: Dry Distiller's Grains with Soluables (DDGS) | AD4: Modified Distiller's Grains with Soluables (MDGS) | AI4: Wet Distiller's Grains with Soluables (WDGS) | AM4: Syrup | AQ4: Distiller's Oil | AT4: Combined Heat and Power (CHP) | BC4: Ethanol Production
B5: 1.3 Company ID | E5: 4.1 | F5: 4.2 | G5: 4.3 | H5: 4.4 | I5: 4.5 | J5: 4.6 | K5: 4.7 | L5: 4.8 | M5: 4.9 | N5: 4.1 | O5: 4.11 | P5: 4.12 | Q5: 4.13 | R5: 4.14 | S5: 4.15 | T5: 4.16 | U5: 4.17 | V5: 4.18 | W5: 4.19 | X5: 4.2 | Y5: 4.21 | Z5: 4.22 | AA5: 4.23 | AB5: 4.24 | AC5: 4.25 | AD5: 4.26 | AE5: 4.27 | AF5: 4.28 | AG5: 4.29 | AH5: 4.3 | AI5: 4.31 | AJ5: 4.32 | AK5: 4.33 | AL5: 4.34 | AM5: 4.35 | AN5: 4.36 | AO5: 4.37 | AP5: 4.38 | AQ5: 4.39 | AR5: 4.4 | AS5: 4.41 | AT5: 4.42 | AU5: 4.43 | AV5: 4.44 | AW5: 4.45 | AX5: 4.46 | AY5: 4.47 | AZ5: 4.48 | BA5: 4.49 | BB5: 4.5 | BC5: 4.51 | BD5: 4.52 | BE5: 4.53 | BF5: 4.54 | BG5: 4.55
B6: 1.4 Facility ID | E6: Reporting Month | F6: Beginning Corn Inventory | G6: Corn Delivered | H6: Ending Corn Inventory | I6: Corn Transported by Truck | J6: Transport Distance by Truck | K6: Corn Transported by Rail | L6: Transport Distance by Rail | M6: Beginning Sorghum Inventory | N6: Sorghum Delivered | O6: Ending Sorghum Inventory | P6: Sorghum Transported by Truck | Q6: Transport Distance by Truck | R6: Sorghum Transported by Rail | S6: Transport Distance by Rail | T6: North American Natural Gas | U6: Direct Supply Biomethane | V6: Alternative Fuel | W6: Grid Electricity | X6: Direct Supply Low-CI Electricity | Y6: Beginning DDGS Inventory | Z6: DDGS Sold | AA6: Ending DDGS Inventory | AB6: DDGS Moisture Content | AC6: DDGS Metered Drying Energy | AD6: Beginning MDGS Inventory | AE6: MDGS Sold | AF6: Ending MDGS Inventory | AG6: MDGS Moisture Content | AH6: MDGS Metered Drying Energy | AI6: Beginning WDGS Inventory | AJ6: WDGS Sold | AK6: Ending WDGS Inventory | AL6: WDGS Moisture Content | AM6: Beginning Syrup Inventory | AN6: Syrup Sold | AO6: Ending Syrup Inventory | AP6: Syrup Moisture Content | AQ6: Beginning Distiller's Oil Inventory | AR6: Distiller's Oil Sold | AS6: Ending Distiller's Oil Inventory | AT6: Natural Gas Combusted in CHP | AU6: Electricity Produced | AV6: Electricity Exported | AW6: Steam Produced | AX6: Steam Exported | AY6: Beginning Cellulosic Enzyme Inventory | AZ6: Cellulosic Enzyme Purchased | BA6: Ending Cellulosic Enzyme Inventory | BB6: Fiber Ethanol Allocation | BC6: Beginning Undenatured Ethanol Inventory | BD6: Undenatured Ethanol Sold | BE6: Denaturant Added | BF6: Denatured Ethanol Sold | BG6: Ending Undenatured Ethanol Inventory
B8: Section 2: Pathway Inputs | E8: MM/YYYY | F8: bushels | G8: bushels | H8: bushels | I8: bushels | J8: weighted av. miles | K8: bushels | L8: weighted av. miles | M8: bushels | N8: bushels | O8: bushels | P8: bushels | Q8: weighted av. miles | R8: bushels | S8: weighted av. miles | T8: MMBtu, HHV | U8: MMBtu, HHV | V8: MMBtu, HHV | W8: kWh | X8: kWh | Y8: short tons | Z8: short tons | AA8: short tons | AB8: % | AC8: MMBtu, HHV | AD8: short tons | AE8: short tons | AF8: short tons | AG8: % | AH8: MMBtu, HHV | AI8: short tons | AJ8: short tons | AK8: short tons | AL8: % | AM8: short tons | AN8: short tons | AO8: short tons | AP8: % | AQ8: lbs | AR8: lbs | AS8: lbs | AT8: MMBtu, HHV | AU8: kWh | AV8: kWh | AW8: MMBtu | AX8: MMBtu | AY8: lbs | AZ8: lbs | BA8: lbs | BB8: % | BC8: gallons @ 60o F | BD8: gallons @ 60o F | BE8: gallons @ 60o F | BF8: gallons @ 60o F | BG8: gallons @ 60o F
B9: 2.1 Pathway CIs | J9: =IF(I9>0,'OR-GREET4.0'!E$13,) -> 0 | L9: =IF(K9>0,'OR-GREET4.0'!E$14,) -> 0 | Q9: =IF(P9>0,'OR-GREET4.0'!E$15,) -> 0 | S9: =IF(R9>0,'OR-GREET4.0'!E$16,) -> 0
B10: 2.2 Feedstocks | J10: =IF(I10>0,'OR-GREET4.0'!E$13,) -> 0 | L10: =IF(K10>0,'OR-GREET4.0'!E$14,) -> 0 | Q10: =IF(P10>0,'OR-GREET4.0'!E$15,) -> 0 | S10: =IF(R10>0,'OR-GREET4.0'!E$16,) -> 0
B11: 2.3 Feedstock Transport | J11: =IF(I11>0,'OR-GREET4.0'!E$13,) -> 0 | L11: =IF(K11>0,'OR-GREET4.0'!E$14,) -> 0 | Q11: =IF(P11>0,'OR-GREET4.0'!E$15,) -> 0 | S11: =IF(R11>0,'OR-GREET4.0'!E$16,) -> 0
B12: 2.4 Process Energy | J12: =IF(I12>0,'OR-GREET4.0'!E$13,) -> 0 | L12: =IF(K12>0,'OR-GREET4.0'!E$14,) -> 0 | Q12: =IF(P12>0,'OR-GREET4.0'!E$15,) -> 0 | S12: =IF(R12>0,'OR-GREET4.0'!E$16,) -> 0
J13: =IF(I13>0,'OR-GREET4.0'!E$13,) -> 0 | L13: =IF(K13>0,'OR-GREET4.0'!E$14,) -> 0 | Q13: =IF(P13>0,'OR-GREET4.0'!E$15,) -> 0 | S13: =IF(R13>0,'OR-GREET4.0'!E$16,) -> 0
J14: =IF(I14>0,'OR-GREET4.0'!E$13,) -> 0 | L14: =IF(K14>0,'OR-GREET4.0'!E$14,) -> 0 | Q14: =IF(P14>0,'OR-GREET4.0'!E$15,) -> 0 | S14: =IF(R14>0,'OR-GREET4.0'!E$16,) -> 0
B15: 2.5 Coproducts | J15: =IF(I15>0,'OR-GREET4.0'!E$13,) -> 0 | L15: =IF(K15>0,'OR-GREET4.0'!E$14,) -> 0 | Q15: =IF(P15>0,'OR-GREET4.0'!E$15,) -> 0 | S15: =IF(R15>0,'OR-GREET4.0'!E$16,) -> 0
J16: =IF(I16>0,'OR-GREET4.0'!E$13,) -> 0 | L16: =IF(K16>0,'OR-GREET4.0'!E$14,) -> 0 | Q16: =IF(P16>0,'OR-GREET4.0'!E$15,) -> 0 | S16: =IF(R16>0,'OR-GREET4.0'!E$16,) -> 0
J17: =IF(I17>0,'OR-GREET4.0'!E$13,) -> 0 | L17: =IF(K17>0,'OR-GREET4.0'!E$14,) -> 0 | Q17: =IF(P17>0,'OR-GREET4.0'!E$15,) -> 0 | S17: =IF(R17>0,'OR-GREET4.0'!E$16,) -> 0
B18: 2.6 Ethanol Produced | J18: =IF(I18>0,'OR-GREET4.0'!E$13,) -> 0 | L18: =IF(K18>0,'OR-GREET4.0'!E$14,) -> 0 | Q18: =IF(P18>0,'OR-GREET4.0'!E$15,) -> 0 | S18: =IF(R18>0,'OR-GREET4.0'!E$16,) -> 0
J19: =IF(I19>0,'OR-GREET4.0'!E$13,) -> 0 | L19: =IF(K19>0,'OR-GREET4.0'!E$14,) -> 0 | Q19: =IF(P19>0,'OR-GREET4.0'!E$15,) -> 0 | S19: =IF(R19>0,'OR-GREET4.0'!E$16,) -> 0
B20: 2.7 Ethanol Transport | J20: =IF(I20>0,'OR-GREET4.0'!E$13,) -> 0 | L20: =IF(K20>0,'OR-GREET4.0'!E$14,) -> 0 | Q20: =IF(P20>0,'OR-GREET4.0'!E$15,) -> 0 | S20: =IF(R20>0,'OR-GREET4.0'!E$16,) -> 0
J21: =IF(I21>0,'OR-GREET4.0'!E$13,) -> 0 | L21: =IF(K21>0,'OR-GREET4.0'!E$14,) -> 0 | Q21: =IF(P21>0,'OR-GREET4.0'!E$15,) -> 0 | S21: =IF(R21>0,'OR-GREET4.0'!E$16,) -> 0
J22: =IF(I22>0,'OR-GREET4.0'!E$13,) -> 0 | L22: =IF(K22>0,'OR-GREET4.0'!E$14,) -> 0 | Q22: =IF(P22>0,'OR-GREET4.0'!E$15,) -> 0 | S22: =IF(R22>0,'OR-GREET4.0'!E$16,) -> 0
B23: Section 3: Static Operational Data | J23: =IF(I23>0,'OR-GREET4.0'!E$13,) -> 0 | L23: =IF(K23>0,'OR-GREET4.0'!E$14,) -> 0 | Q23: =IF(P23>0,'OR-GREET4.0'!E$15,) -> 0 | S23: =IF(R23>0,'OR-GREET4.0'!E$16,) -> 0
B24: 3.1 Feedstock Transport Data | C24: Default for Oregon | J24: =IF(I24>0,'OR-GREET4.0'!E$13,) -> 0 | L24: =IF(K24>0,'OR-GREET4.0'!E$14,) -> 0 | Q24: =IF(P24>0,'OR-GREET4.0'!E$15,) -> 0 | S24: =IF(R24>0,'OR-GREET4.0'!E$16,) -> 0
B25: 3.2 Grid Electricity Region | J25: =IF(I25>0,'OR-GREET4.0'!E$13,) -> 0 | L25: =IF(K25>0,'OR-GREET4.0'!E$14,) -> 0 | Q25: =IF(P25>0,'OR-GREET4.0'!E$15,) -> 0 | S25: =IF(R25>0,'OR-GREET4.0'!E$16,) -> 0
B26: 3.3 Grid CI (gCO2e/kWh) | J26: =IF(I26>0,'OR-GREET4.0'!E$13,) -> 0 | L26: =IF(K26>0,'OR-GREET4.0'!E$14,) -> 0 | Q26: =IF(P26>0,'OR-GREET4.0'!E$15,) -> 0 | S26: =IF(R26>0,'OR-GREET4.0'!E$16,) -> 0
B27: 3.4 Alternate Fuel Type | J27: =IF(I27>0,'OR-GREET4.0'!E$13,) -> 0 | L27: =IF(K27>0,'OR-GREET4.0'!E$14,) -> 0 | Q27: =IF(P27>0,'OR-GREET4.0'!E$15,) -> 0 | S27: =IF(R27>0,'OR-GREET4.0'!E$16,) -> 0
B28: 3.5 Alt. Fuel EF (gCO2e/MMBtu, HHV) | J28: =IF(I28>0,'OR-GREET4.0'!E$13,) -> 0 | L28: =IF(K28>0,'OR-GREET4.0'!E$14,) -> 0 | Q28: =IF(P28>0,'OR-GREET4.0'!E$15,) -> 0 | S28: =IF(R28>0,'OR-GREET4.0'!E$16,) -> 0
B29: 3.6 Biomethane EF (gCO2e/MJ, LHV) | J29: =IF(I29>0,'OR-GREET4.0'!E$13,) -> 0 | L29: =IF(K29>0,'OR-GREET4.0'!E$14,) -> 0 | Q29: =IF(P29>0,'OR-GREET4.0'!E$15,) -> 0 | S29: =IF(R29>0,'OR-GREET4.0'!E$16,) -> 0
B30: 3.7 Low-CI Electricity CI (gCO2e/kWh) | J30: =IF(I30>0,'OR-GREET4.0'!E$13,) -> 0 | L30: =IF(K30>0,'OR-GREET4.0'!E$14,) -> 0 | Q30: =IF(P30>0,'OR-GREET4.0'!E$15,) -> 0 | S30: =IF(R30>0,'OR-GREET4.0'!E$16,) -> 0
B31: 3.8 Denaturant Blended | J31: =IF(I31>0,'OR-GREET4.0'!E$13,) -> 0 | L31: =IF(K31>0,'OR-GREET4.0'!E$14,) -> 0 | Q31: =IF(P31>0,'OR-GREET4.0'!E$15,) -> 0 | S31: =IF(R31>0,'OR-GREET4.0'!E$16,) -> 0
B32: 3.9 Ethanol Transport - Truck (miles) | J32: =IF(I32>0,'OR-GREET4.0'!E$13,) -> 0 | L32: =IF(K32>0,'OR-GREET4.0'!E$14,) -> 0 | Q32: =IF(P32>0,'OR-GREET4.0'!E$15,) -> 0 | S32: =IF(R32>0,'OR-GREET4.0'!E$16,) -> 0
B33: 3.10 Ethanol Transport - Rail (miles)
B34: 3.11 Ethanol Transport - Barge (miles)

Sheet Pathway Summary
C2: Corn and Sorghum Ethanol Pathway Summary
C4: FOR APPLICANT ONLY - CONTAINS CONFIDENTIAL BUSINESS INFORMATION - DO NOT DISTRIBUTE
B7: Application # | C7: ='Site-Specific Inputs'!C3 -> 0 | E7: Finished Fuel Quantities
B8: Company Name and ID | C8: =CONCATENATE('Site-Specific Inputs'!C4," ",'Site-Specific Inputs'!C5) ->  | E8: Unit | F8: Undenatured Ethanol | G8: Denaturant Added | H8: Denatured Ethanol | I8: =I14 -> Corn Composite | J8: Sorghum Composite | K8: Corn DDGS | L8: Corn MDGS | M8: Corn WDGS | N8: Sorghum DDGS | O8: Sorghum MDGS | P8: Sorghum WDGS | Q8: Fiber
B9: Facility ID | C9: ='Site-Specific Inputs'!C6 -> 0 | E9: Gallons Produced | F9: =SUM('Site-Specific Inputs'!BF9:BF32,-'Site-Specific Inputs'!BE9:BE32,'Site-Specific Inputs'!BD9:BD32,'Site-Specific Inputs'!BG9:BG32,-'Site-Specific Inputs'!BC9:BC32) -> 0 | G9: =SUM('Site-Specific Inputs'!BE9:BE32) -> 0 | H9: =SUM(F9:G9) -> 0 | I9: =SUM(K9:M9) -> 0 | J9: =SUM(N9:P9) -> 0 | K9: =IFERROR((H9-Q9)*SUMPRODUCT('Site-Specific Inputs'!AA9:AA32+'Site-Specific Inputs'!Z9:Z32-'Site-Specific Inputs'!Y9:Y32,(1-'Site-Specific Inputs'!AB9:AB32))/(SUMPRODUCT('Site-Specific Inputs'!AA9:AA32+'Site-Specific Inputs'!Z9:Z32-'Site-Specific Inputs'!Y9:Y32,(1-'Site-Specific Inputs'!AB9:AB32))+SUMPRODUCT('Site-Specific Inputs'!AF9:AF32+'Site-Specific Inputs'!AE9:AE32-'Site-Specific Inputs'!AD9:AD32,(1-'Site-Specific Inputs'!AG9:AG32))+SUMPRODUCT('Site-Specific Inputs'!AK9:AK32+'Site-Specific Inputs'!AJ9:AJ32-'Site-Specific Inputs'!AI9:AI32,(1-'Site-Specific Inputs'!AL9:AL32)))*D15/SUM(D15:D16),) -> 0 | L9: =IFERROR((H9-Q9)*SUMPRODUCT('Site-Specific Inputs'!AF9:AF32+'Site-Specific Inputs'!AE9:AE32-'Site-Specific Inputs'!AD9:AD32,(1-'Site-Specific Inputs'!AG9:AG32))/(SUMPRODUCT('Site-Specific Inputs'!AA9:AA32+'Site-Specific Inputs'!Z9:Z32-'Site-Specific Inputs'!Y9:Y32,(1-'Site-Specific Inputs'!AB9:AB32))+SUMPRODUCT('Site-Specific Inputs'!AF9:AF32+'Site-Specific Inputs'!AE9:AE32-'Site-Specific Inputs'!AD9:AD32,(1-'Site-Specific Inputs'!AG9:AG32))+SUMPRODUCT('Site-Specific Inputs'!AK9:AK32+'Site-Specific Inputs'!AJ9:AJ32-'Site-Specific Inputs'!AI9:AI32,(1-'Site-Specific Inputs'!AL9:AL32)))*D15/SUM(D15:D16),) -> 0 | M9: =IFERROR((H9-Q9)*SUMPRODUCT('Site-Specific Inputs'!AK9:AK32+'Site-Specific Inputs'!AJ9:AJ32-'Site-Specific Inputs'!AI9:AI32,(1-'Site-Specific Inputs'!AL9:AL32))/(SUMPRODUCT('Site-Specific Inputs'!AA9:AA32+'Site-Specific Inputs'!Z9:Z32-'Site-Specific Inputs'!Y9:Y32,(1-'Site-Specific Inputs'!AB9:AB32))+SUMPRODUCT('Site-Specific Inputs'!AF9:AF32+'Site-Specific Inputs'!AE9:AE32-'Site-Specific Inputs'!AD9:AD32,(1-'Site-Specific Inputs'!AG9:AG32))+SUMPRODUCT('Site-Specific Inputs'!AK9:AK32+'Site-Specific Inputs'!AJ9:AJ32-'Site-Specific Inputs'!AI9:AI32,(1-'Site-Specific Inputs'!AL9:AL32)))*D15/SUM(D15:D16),) -> 0 | N9: =IFERROR((H9-Q9)*SUMPRODUCT('Site-Specific Inputs'!AA9:AA32+'Site-Specific Inputs'!Z9:Z32-'Site-Specific Inputs'!Y9:Y32,(1-'Site-Specific Inputs'!AB9:AB32))/(SUMPRODUCT('Site-Specific Inputs'!AA9:AA32+'Site-Specific Inputs'!Z9:Z32-'Site-Specific Inputs'!Y9:Y32,(1-'Site-Specific Inputs'!AB9:AB32))+SUMPRODUCT('Site-Specific Inputs'!AF9:AF32+'Site-Specific Inputs'!AE9:AE32-'Site-Specific Inputs'!AD9:AD32,(1-'Site-Specific Inputs'!AG9:AG32))+SUMPRODUCT('Site-Specific Inputs'!AK9:AK32+'Site-Specific Inputs'!AJ9:AJ32-'Site-Specific Inputs'!AI9:AI32,(1-'Site-Specific Inputs'!AL9:AL32)))*D16/SUM(D15:D16),) -> 0 | O9: =IFERROR((H9-Q9)*SUMPRODUCT('Site-Specific Inputs'!AF9:AF32+'Site-Specific Inputs'!AE9:AE32-'Site-Specific Inputs'!AD9:AD32,(1-'Site-Specific Inputs'!AG9:AG32))/(SUMPRODUCT('Site-Specific Inputs'!AA9:AA32+'Site-Specific Inputs'!Z9:Z32-'Site-Specific Inputs'!Y9:Y32,(1-'Site-Specific Inputs'!AB9:AB32))+SUMPRODUCT('Site-Specific Inputs'!AF9:AF32+'Site-Specific Inputs'!AE9:AE32-'Site-Specific Inputs'!AD9:AD32,(1-'Site-Specific Inputs'!AG9:AG32))+SUMPRODUCT('Site-Specific Inputs'!AK9:AK32+'Site-Specific Inputs'!AJ9:AJ32-'Site-Specific Inputs'!AI9:AI32,(1-'Site-Specific Inputs'!AL9:AL32)))*D16/SUM(D15:D16),) -> 0 | P9: =IFERROR((H9-Q9)*SUMPRODUCT('Site-Specific Inputs'!AK9:AK32+'Site-Specific Inputs'!AJ9:AJ32-'Site-Specific Inputs'!AI9:AI32,(1-'Site-Specific Inputs'!AL9:AL32))/(SUMPRODUCT('Site-Specific Inputs'!AA9:AA32+'Site-Specific Inputs'!Z9:Z32-'Site-Specific Inputs'!Y9:Y32,(1-'Site-Specific Inputs'!AB9:AB32))+SUMPRODUCT('Site-Specific Inputs'!AF9:AF32+'Site-Specific Inputs'!AE9:AE32-'Site-Specific Inputs'!AD9:AD32,(1-'Site-Specific Inputs'!AG9:AG32))+SUMPRODUCT('Site-Specific Inputs'!AK9:AK32+'Site-Specific Inputs'!AJ9:AJ32-'Site-Specific Inputs'!AI9:AI32,(1-'Site-Specific Inputs'!AL9:AL32)))*D16/SUM(D15:D16),) -> 0 | Q9: =SUMPRODUCT('Site-Specific Inputs'!BG9:BG32+'Site-Specific Inputs'!BD9:BD32+'Site-Specific Inputs'!BF9:BF32-'Site-Specific Inputs'!BC9:BC32, 'Site-Specific Inputs'!BB9:BB32) -> 0
B10: Operational Data Period | C10: =IF('Site-Specific Inputs'!E9>0,CONCATENATE(TEXT(MIN('Site-Specific Inputs'!E9:E32),"mm/yyyy")," — ",TEXT(MAX('Site-Specific Inputs'!E9:E32),"mm/yyyy")),) -> 0 | E10: MJ Dispensed, LHV | F10: =F9*'OR-GREET4.0'!E6/'OR-GREET4.0'!E37 -> 0 | G10: =G9*'OR-GREET4.0'!E4 -> 0 | H10: =SUM(F10:G10) -> 0 | I10: =SUM(K10:M10) -> 0 | J10: =SUM(N10:P10) -> 0 | K10: =IFERROR(K9*H10/H9,) -> 0 | L10: =IFERROR(L9*H10/H9,) -> 0 | M10: =IFERROR(M9*H10/H9,) -> 0 | N10: =IFERROR(N9*H10/H9,) -> 0 | O10: =IFERROR(O9*H10/H9,) -> 0 | P10: =IFERROR(P9*H10/H9,) -> 0 | Q10: =IFERROR(Q9*H10/H9,) -> 0
B12: Carbon Intensity Calculations
B13: Fuel Pathway Inputs | F13: Emission Factors | H13: Emissions | I13: Carbon Intensity, gCO2e/MJ d-EtOH, LHV
B14: Category | C14: Name | D14: Value | E14: Unit | F14: Value | G14: Unit | H14: gCO2e | I14: Corn Composite | J14: Sorghum Composite | K14: Corn DDGS | L14: Corn MDGS | M14: Corn WDGS | N14: Sorghum DDGS | O14: Sorghum MDGS | P14: Sorghum WDGS | Q14: Fiber
B15: ='OR-GREET4.0'!B8 -> Feedstock Production | C15: Corn Farming | D15: =SUM('Site-Specific Inputs'!F9:G32,-'Site-Specific Inputs'!H9:H32) -> 0 | E15: bushels | F15: ='OR-GREET4.0'!E8 -> 7111.176645 | G15: gCO2e/bushel | H15: =D15*F15 -> 0 | I15: =IF(I10>0,H15/I10,) -> 0 | K15: =IF(K10>0,H15/I10,) -> 0 | L15: =IF(L10>0,H15/I10,) -> 0 | M15: =IF(M10>0,H15/I10,) -> 0
C16: Sorghum Farming | D16: =SUM('Site-Specific Inputs'!M9:N32,-'Site-Specific Inputs'!O9:O32) -> 0 | E16: bushels | F16: ='OR-GREET4.0'!E9 -> 7600.856024 | G16: gCO2e/bushel | H16: =D16*F16 -> 0 | J16: =IF(J10>0,H16/J10,) -> 0 | N16: =IFERROR(H16/J10,) -> 0 | O16: =IFERROR(H16/J10,) -> 0 | P16: =IFERROR(H16/J10,) -> 0
C17: Corn Land Use Change | D17: =IFERROR((F10-Q10*(1-(G10/H10)))*(D15/SUM(D15:D16)),) -> 0 | E17: MJ, LHV | F17: ='OR-GREET4.0'!E10 -> 7.6 | G17: gCO2e/MJ, LHV | H17: =D17*F17 -> 0 | I17: =IF(I10>0,H17/I10,) -> 0 | K17: =IF(K10>0,H17/I10,) -> 0 | L17: =IF(L10>0,H17/I10,) -> 0 | M17: =IF(M10>0,H17/I10,) -> 0 | S17: MJ (LHV)
C18: Sorghum Land Use Change | D18: =IFERROR((F10-Q10*(1-(G10/H10)))*(D16/SUM(D15:D16)),) -> 0 | E18: MJ, LHV | F18: ='OR-GREET4.0'!E11 -> 19.4 | G18: gCO2e/MJ, LHV | H18: =D18*F18 -> 0 | J18: =IF(J10>0,H18/J10,) -> 0 | N18: =IF(N10>0,H18/J10,) -> 0 | O18: =IF(O10>0,H18/J10,) -> 0 | P18: =IF(P10>0,H18/J10,) -> 0
B19: Corn Transport | C19: Field to Stack Transport | D19: =D15*'OR-GREET4.0'!E12 -> 0 | E19: bushel-miles | F19: ='OR-GREET4.0'!E22 -> 9.876557324 | G19: gCO2e/bushel-mile | H19: =D19*F19 -> 0 | I19: =IF(I10>0,H19/I10,) -> 0 | K19: =IF(K10>0,H19/I10,) -> 0 | L19: =IF(L10>0,H19/I10,) -> 0 | M19: =IF(M10>0,H19/I10,) -> 0
C20: Stack to Facility Truck Transport | D20: =SUMPRODUCT('Site-Specific Inputs'!I9:I32,'Site-Specific Inputs'!J9:J32) -> 0 | E20: bushel-miles | F20: ='OR-GREET4.0'!E23 -> 4.879357927 | G20: gCO2e/bushel-mile | H20: 0 | I20: =IF(I10>0,H20/I10,) -> 0 | K20: =IF(K10>0,H20/I10,) -> 0 | L20: =IF(L10>0,H20/I10,) -> 0 | M20: =IF(M10>0,H20/I10,) -> 0
C21: Stack to Facility Rail Transport | D21: =SUMPRODUCT('Site-Specific Inputs'!K9:K32,'Site-Specific Inputs'!L9:L32) -> 0 | E21: bushel-miles | F21: ='OR-GREET4.0'!E25 -> 0.7274622259 | G21: gCO2e/bushel-mile | H21: 0 | I21: =IF(I10>0,H21/I10,) -> 0 | K21: =IF(K10>0,H21/I10,) -> 0 | L21: =IF(L10>0,H21/I10,) -> 0 | M21: =IF(M10>0,H21/I10,) -> 0
B22: Sorghum Transport | C22: Field to Stack Transport | D22: =D16*'OR-GREET4.0'!E12*'OR-GREET4.0'!E21 -> 0 | E22: bushel-miles | F22: ='OR-GREET4.0'!E22 -> 9.876557324 | G22: gCO2e/bushel-mile | H22: =D22*F22 -> 0 | J22: =IF(J10>0,H22/J10,) -> 0 | N22: =IFERROR(H22/J10,) -> 0 | O22: =IFERROR(H22/J10,) -> 0 | P22: =IFERROR(H22/J10,) -> 0
C23: Stack to Facility Truck Transport | D23: =SUMPRODUCT('Site-Specific Inputs'!P9:P32,'Site-Specific Inputs'!Q9:Q32)*'OR-GREET4.0'!E21 -> 0 | E23: bushel-miles | F23: ='OR-GREET4.0'!E24 -> 4.879357927 | G23: gCO2e/bushel-mile | H23: 0 | J23: =IF(J10>0,H23/J10,) -> 0 | N23: =IFERROR(H23/J10,) -> 0 | O23: =IFERROR(H23/J10,) -> 0 | P23: =IFERROR(H23/J10,) -> 0
C24: Stack to Facility Rail Transport | D24: =SUMPRODUCT('Site-Specific Inputs'!R9:R32,'Site-Specific Inputs'!S9:S32)*'OR-GREET4.0'!E21 -> 0 | E24: bushel-miles | F24: ='OR-GREET4.0'!E25 -> 0.7274622259 | G24: gCO2e/bushel-mile | H24: 0 | J24: =IF(J10>0,H24/J10,) -> 0 | N24: =IFERROR(H24/J10,) -> 0 | O24: =IFERROR(H24/J10,) -> 0 | P24: =IFERROR(H24/J10,) -> 0
B25: Fuel Production | C25: ='Site-Specific Inputs'!T6 -> North American Natural Gas | D25: =SUM('Site-Specific Inputs'!T9:T32-'Site-Specific Inputs'!AC9:AC32-'Site-Specific Inputs'!AH9:AH32)*'OR-GREET4.0'!E7 -> 0 | E25: MMBtu, LHV | F25: ='OR-GREET4.0'!E26 -> 75495.75125 | G25: gCO2e/MMBtu, LHV | H25: 0 | I25: =IF(I10>0,H25/H10,) -> 0 | J25: =IF(J10>0,H25/H10,) -> 0 | K25: =IF(K10>0,H25/H10,) -> 0 | L25: =IF(L10>0,H25/H10,) -> 0 | M25: =IF(M10>0,H25/H10,) -> 0 | N25: =IF(N10>0,H25/H10,) -> 0 | O25: =IF(O10>0,H25/H10,) -> 0 | P25: =IF(P10>0,H25/H10,) -> 0 | Q25: =IF(Q10>0,H25/H10,) -> 0
C26: ='Site-Specific Inputs'!U6 -> Direct Supply Biomethane | D26: =SUM('Site-Specific Inputs'!U9:U32)*'OR-GREET4.0'!E7*'OR-GREET4.0'!M6 -> 0 | E26: MJ, LHV | F26: ='Site-Specific Inputs'!C29 -> 0 | G26: gCO2e/MJ, LHV | H26: 0 | I26: =IF(I10>0,H26/H10,) -> 0 | J26: =IF(J10>0,H26/H10,) -> 0 | K26: =IF(K10>0,H26/H10,) -> 0 | L26: =IF(L10>0,H26/H10,) -> 0 | M26: =IF(M10>0,H26/H10,) -> 0 | N26: =IF(N10>0,H26/H10,) -> 0 | O26: =IF(O10>0,H26/H10,) -> 0 | P26: =IF(P10>0,H26/H10,) -> 0 | Q26: =IF(Q10>0,H26/H10,) -> 0
C27: ='Site-Specific Inputs'!V6 -> Alternative Fuel | D27: =SUM('Site-Specific Inputs'!V9:V32) -> 0 | E27: ='Site-Specific Inputs'!V8 -> MMBtu, HHV | F27: ='Site-Specific Inputs'!C28 -> 0 | G27: gCO2e/dry short ton | H27: 0 | I27: =IF(I10>0,H27/H10,) -> 0 | J27: =IF(J10>0,H27/H10,) -> 0 | K27: =IF(K10>0,H27/H10,) -> 0 | L27: =IF(L10>0,H27/H10,) -> 0 | M27: =IF(M10>0,H27/H10,) -> 0 | N27: =IF(N10>0,H27/H10,) -> 0 | O27: =IF(O10>0,H27/H10,) -> 0 | P27: =IF(P10>0,H27/H10,) -> 0 | Q27: =IF(Q10>0,H27/H10,) -> 0
C28: ='Site-Specific Inputs'!W6 -> Grid Electricity | D28: =SUM('Site-Specific Inputs'!W9:W32) -> 0 | E28: ='Site-Specific Inputs'!W8 -> kWh | F28: ='Site-Specific Inputs'!C26 -> 0 | G28: gCO2e/kWh | H28: 0 | I28: =IF(I10>0,H28/H10,) -> 0 | J28: =IF(J10>0,H28/H10,) -> 0 | K28: =IF(K10>0,H28/H10,) -> 0 | L28: =IF(L10>0,H28/H10,) -> 0 | M28: =IF(M10>0,H28/H10,) -> 0 | N28: =IF(N10>0,H28/H10,) -> 0 | O28: =IF(O10>0,H28/H10,) -> 0 | P28: =IF(P10>0,H28/H10,) -> 0 | Q28: =IF(Q10>0,H28/H10,) -> 0
C29: ='Site-Specific Inputs'!X6 -> Direct Supply Low-CI Electricity | D29: =SUM('Site-Specific Inputs'!X9:X32) -> 0 | E29: ='Site-Specific Inputs'!X8 -> kWh | F29: ='Site-Specific Inputs'!C30 -> 0 | G29: gCO2e/kWh | H29: 0 | I29: =IF(I10>0,H29/H10,) -> 0 | J29: =IF(J10>0,H29/H10,) -> 0 | K29: =IF(K10>0,H29/H10,) -> 0 | L29: =IF(L10>0,H29/H10,) -> 0 | M29: =IF(M10>0,H29/H10,) -> 0 | N29: =IF(N10>0,H29/H10,) -> 0 | O29: =IF(O10>0,H29/H10,) -> 0 | P29: =IF(P10>0,H29/H10,) -> 0 | Q29: =IF(Q10>0,H29/H10,) -> 0
C30: ='Site-Specific Inputs'!BE6 -> Denaturant Added | D30: =G10 -> 0 | E30: MJ, LHV | F30: ='OR-GREET4.0'!E5 -> 100.5970423 | G30: gCO2e/MJ, LHV | H30: 0 | I30: =IF(I10>0,H30/H10,) -> 0 | J30: =IF(J10>0,H30/H10,) -> 0 | K30: =IF(K10>0,H30/H10,) -> 0 | L30: =IF(L10>0,H30/H10,) -> 0 | M30: =IF(M10>0,H30/H10,) -> 0 | N30: =IF(N10>0,H30/H10,) -> 0 | O30: =IF(O10>0,H30/H10,) -> 0 | P30: =IF(P10>0,H30/H10,) -> 0 | Q30: =IF(Q10>0,H30/H10,) -> 0
C31: Chemicals | D31: =F10 -> 0 | E31: MJ, LHV | F31: ='OR-GREET4.0'!E27 -> 2.02 | G31: gCO2e/MJ, LHV | H31: 0 | I31: =IF(I10>0,H31/H10,) -> 0 | J31: =IF(J10>0,H31/H10,) -> 0 | K31: =IF(K10>0,H31/H10,) -> 0 | L31: =IF(L10>0,H31/H10,) -> 0 | M31: =IF(M10>0,H31/H10,) -> 0 | N31: =IF(N10>0,H31/H10,) -> 0 | O31: =IF(O10>0,H31/H10,) -> 0 | P31: =IF(P10>0,H31/H10,) -> 0
C32: Cellulosic Ethanol Enzymes | D32: =SUM('Site-Specific Inputs'!AY9:AZ32,-'Site-Specific Inputs'!BA9:BA32) -> 0 | E32: lb enzyme | F32: ='OR-GREET4.0'!E28 -> 525.371098 | G32: gCO2e/lb enzyme | H32: 0 | Q32: =IFERROR(H32/Q10,) -> 0
B33: Coproducts | C33: ='Site-Specific Inputs'!AC6 -> DDGS Metered Drying Energy | D33: =SUM('Site-Specific Inputs'!AC9:AC32)*'OR-GREET4.0'!E7 -> 0 | E33: MMBtu, LHV | F33: ='OR-GREET4.0'!E26 -> 75495.75125 | G33: gCO2e/MMBtu, LHV | H33: =D33*F33 -> 0 | I33: =IF(I10>0,H33/H10,) -> 0 | J33: =IF(J10>0,H33/H10,) -> 0 | K33: =IF(K10>0,H33/(K10+N10),) -> 0 | N33: =IF(N10>0,H33/(K10+N10),) -> 0
C34: ='Site-Specific Inputs'!AH6 -> MDGS Metered Drying Energy | D34: =SUM('Site-Specific Inputs'!AH9:AH32)*'OR-GREET4.0'!E7 -> 0 | E34: MMBtu, LHV | F34: ='OR-GREET4.0'!E26 -> 75495.75125 | G34: gCO2e/MMBtu, LHV | H34: =D34*F34 -> 0 | I34: =IF(I10>0,H34/H10,) -> 0 | J34: =IF(J10>0,H34/H10,) -> 0 | L34: =IF(L10>0,H34/(L10+O10),) -> 0 | O34: =IF(O10>0,H34/(L10+O10),) -> 0
C35: DGS Displacement Credit | D35: =(SUMPRODUCT('Site-Specific Inputs'!AA9:AA32+'Site-Specific Inputs'!Z9:Z32-'Site-Specific Inputs'!Y9:Y32,(1-'Site-Specific Inputs'!AB9:AB32))+SUMPRODUCT('Site-Specific Inputs'!AF9:AF32+'Site-Specific Inputs'!AE9:AE32-'Site-Specific Inputs'!AD9:AD32,(1-'Site-Specific Inputs'!AG9:AG32))+SUMPRODUCT('Site-Specific Inputs'!AK9:AK32+'Site-Specific Inputs'!AJ9:AJ32-'Site-Specific Inputs'!AI9:AI32,(1-'Site-Specific Inputs'!AL9:AL32))+SUMPRODUCT('Site-Specific Inputs'!AN9:AN32+'Site-Specific Inputs'!AO9:AO32-'Site-Specific Inputs'!AM9:AM32,(1-'Site-Specific Inputs'!AP9:AP32)))*'OR-GREET4.0'!M15+SUM('Site-Specific Inputs'!AS9:AS32+'Site-Specific Inputs'!AR9:AR32-'Site-Specific Inputs'!AQ9:AQ32)*(1-'OR-GREET4.0'!E29) -> 0 | E35: lbs, dry basis | F35: =-IFERROR(SUM(H15:H16,H19:H24)/SUM(D15:D16)*0.781/56+70.81+13.13,) -> 0 | G35: gCO2e/lb coproduct | H35: =D35*F35 -> 0 | I35: =IF(I10>0,H35/(H10-Q10),) -> 0 | J35: =IF(J10>0,H35/(H10-Q10),) -> 0 | K35: =IF(K10>0,H35/(H10-Q10),) -> 0 | L35: =IF(L10>0,H35/(H10-Q10),) -> 0 | M35: =IF(M10>0,H35/(H10-Q10),) -> 0 | N35: =IF(N10>0,H35/(H10-Q10),) -> 0 | O35: =IF(O10>0,H35/(H10-Q10),) -> 0 | P35: =IF(P10>0,H35/(H10-Q10),) -> 0
C36: Exported CHP Electricity | D36: =SUM('Site-Specific Inputs'!AV9:AV32) -> 0 | E36: ='Site-Specific Inputs'!AV8 -> kWh | F36: =-'Site-Specific Inputs'!C26 -> 0 | G36: gCO2e/kWh | H36: 0 | I36: =IF(I10>0,H36/H10,) -> 0 | J36: =IF(J10>0,H36/H10,) -> 0 | K36: =IF(K10>0,H36/H10,) -> 0 | L36: =IF(L10>0,H36/H10,) -> 0 | M36: =IF(M10>0,H36/H10,) -> 0 | N36: =IF(N10>0,H36/H10,) -> 0 | O36: =IF(O10>0,H36/H10,) -> 0 | P36: =IF(P10>0,H36/H10,) -> 0 | Q36: =IF(Q10>0,H36/H10,) -> 0
C37: Exported CHP Steam | D37: =SUM('Site-Specific Inputs'!AX9:AX32) -> 0 | E37: ='Site-Specific Inputs'!AX8 -> MMBtu | F37: =-'OR-GREET4.0'!E26/0.8 -> -94369.68906 | G37: gCO2e/MMBtu, LHV | H37: 0 | I37: =IF(I10>0,H37/H10,) -> 0 | J37: =IF(J10>0,H37/H10,) -> 0 | K37: =IF(K10>0,H37/H10,) -> 0 | L37: =IF(L10>0,H37/H10,) -> 0 | M37: =IF(M10>0,H37/H10,) -> 0 | N37: =IF(N10>0,H37/H10,) -> 0 | O37: =IF(O10>0,H37/H10,) -> 0 | P37: =IF(P10>0,H37/H10,) -> 0 | Q37: =IF(Q10>0,H37/H10,) -> 0
B38: Finished Fuel Transport | C38: Truck Transport to Terminal | D38: ='Site-Specific Inputs'!C32*H9 -> 0 | E38: gallon-miles | F38: ='OR-GREET4.0'!E35 -> 0.5739704086 | G38: gCO2e/gallon-mile | H38: 0 | I38: =IF(I10>0,H38/H10,) -> 0 | J38: =IF(J10>0,H38/H10,) -> 0 | K38: =IF(K10>0,H38/H10,) -> 0 | L38: =IF(L10>0,H38/H10,) -> 0 | M38: =IF(M10>0,H38/H10,) -> 0 | N38: =IF(N10>0,H38/H10,) -> 0 | O38: =IF(O10>0,H38/H10,) -> 0 | P38: =IF(P10>0,H38/H10,) -> 0 | Q38: =IF(Q10>0,H38/H10,) -> 0
C39: Rail Transport to Terminal | D39: ='Site-Specific Inputs'!C33*H9 -> 0 | E39: gallon-miles | F39: ='OR-GREET4.0'!E33 -> 0.08557310148 | G39: gCO2e/gallon-mile | H39: 0 | I39: =IF(I10>0,H39/H10,) -> 0 | J39: =IF(J10>0,H39/H10,) -> 0 | K39: =IF(K10>0,H39/H10,) -> 0 | L39: =IF(L10>0,H39/H10,) -> 0 | M39: =IF(M10>0,H39/H10,) -> 0 | N39: =IF(N10>0,H39/H10,) -> 0 | O39: =IF(O10>0,H39/H10,) -> 0 | P39: =IF(P10>0,H39/H10,) -> 0 | Q39: =IF(Q10>0,H39/H10,) -> 0
C40: Barge Transport to Terminal | D40: ='Site-Specific Inputs'!C34*H9 -> 0 | E40: gallon-miles | F40: ='OR-GREET4.0'!E34 -> 0.1395447075 | G40: gCO2e/gallon-mile | H40: 0 | I40: =IF(I10>0,H40/H10,) -> 0 | J40: =IF(J10>0,H40/H10,) -> 0 | K40: =IF(K10>0,H40/H10,) -> 0 | L40: =IF(L10>0,H40/H10,) -> 0 | M40: =IF(M10>0,H40/H10,) -> 0 | N40: =IF(N10>0,H40/H10,) -> 0 | O40: =IF(O10>0,H40/H10,) -> 0 | P40: =IF(P10>0,H40/H10,) -> 0 | Q40: =IF(Q10>0,H40/H10,) -> 0
C41: Terminal to Fuel Station | D41: =H9*'OR-GREET4.0'!E36 -> 0 | E41: gallon-miles | F41: ='OR-GREET4.0'!E32 -> 0.5739704086 | G41: gCO2e/gallon-mile | H41: =D41*F41 -> 0 | I41: =IF(I10>0,H41/H10,) -> 0 | J41: =IF(J10>0,H41/H10,) -> 0 | K41: =IF(K10>0,H41/H10,) -> 0 | L41: =IF(L10>0,H41/H10,) -> 0 | M41: =IF(M10>0,H41/H10,) -> 0 | N41: =IF(N10>0,H41/H10,) -> 0 | O41: =IF(O10>0,H41/H10,) -> 0 | P41: =IF(P10>0,H41/H10,) -> 0 | Q41: =IF(Q10>0,H41/H10,) -> 0
B42: Fuel Pathway Carbon Intensity (gCO2e/MJ Denatured Ethanol, LHV) | I42: =SUM(I15:I41) -> 0 | J42: 0 | K42: 0 | L42: 0 | M42: 0 | N42: 0 | O42: 0 | P42: 0 | Q42: 0
B43: Margin of Safety (entered by applicant)
B44: Certified Fuel Pathway Carbon Intensity (gCO2e/MJ Denatured Ethanol, LHV) | I44: =I42+I43 -> 0 | J44: =J42+J43 -> 0 | K44: 0 | L44: 0 | M44: 0 | N44: 0 | O44: 0 | P44: 0 | Q44: 0
B46: Operating Conditions
C57: `

Sheet OR-GREET4.0
B2: OR-GREET4.0 Emission Factors and Specifications | H2: Unit Conversion
B3: Category | C3: Sub-Category | D3: Name | E3: Value | F3: Unit | H3: Energy | I3: 1 kJ | J3: 1 MJ | K3: 1 kWh | L3: 1 BTU | M3: 1 MMBtu
B4: Fuel Specifications | C4: Energy Density | D4: California Reformulated Gasoline Before Oxygenate Blending (CARBOB) | E4: 119.53 | F4: MJ/gal, LHV | H4: Joule (J) | I4: 1000 | J4: 1000000 | K4: 3600000 | L4: 1055.05585 | M4: 1055055850
E5: 100.5970423 | F5: gCO2e/MJ, LHV | H5: Kilojoule (kJ) | I5: 1 | J5: 1000 | K5: 3600 | L5: 1.05505585 | M5: 1055055.85
D6: Ethanol | E6: 80.53 | F6: MJ/gal, LHV | H6: Megajoule (MJ) | I6: 0.001 | J6: 1 | K6: 3.6 | L6: 0.00105505585 | M6: 1055.05585
C7: Heating Value Ratio | D7: Natural Gas | E7: 0.9029126214 | F7: LHV/HHV | H7: Watt-hour (Wh) | I7: 0.2777777778 | J7: 277.7777778 | K7: 1000 | L7: 0.2930710694 | M7: 293071.0694
B8: Feedstock Production | C8: Farming, Fertilizers and Pesticides | D8: Corn | E8: 7111.176645 | F8: gCO2e/bushel | H8: Kilowatt-hour (kWh) | I8: 0.0002777777778 | J8: 0.2777777778 | K8: 1 | L8: 0.0002930710694 | M8: 293.0710694
D9: Sorghum | E9: 7600.856024 | F9: gCO2e/bushel | H9: British Thermal Unit (BTU) | I9: 0.9478171227 | J9: 947.8171227 | K9: 3412.141642 | L9: 1 | M9: 1000000
C10: Land Use Change | D10: Corn | E10: 7.6 | F10: gCO2e/MJ corn EtOH | H10: Million British Thermal Unit (MMBtu) | I10: 9.478171227e-07 | J10: 0.0009478171227 | K10: 0.003412141642 | L10: 1e-06 | M10: 1
D11: Sorghum | E11: 19.4 | F11: gCO2e/MJ sorghum EtOH | H11: Mass | I11: 1 g | J11: 1 kg | K11: 1 MT | L11: 1 lb | M11: 1 short ton
B12: Feedstock Transport | C12: Field to Stack Standard Distance | D12: Corn or Sorghum | E12: 10 | F12: miles | H12: Gram (g) | I12: 1 | J12: 1000 | K12: 1000000 | L12: 453.59237 | M12: 907184.74
C13: Stack to Fuel Production Facility Distance | D13: OR Facility, Truck, Corn | E13: 50 | F13: miles | H13: Kilogram (kg) | I13: 0.001 | J13: 1 | K13: 1000 | L13: 0.45359237 | M13: 907.18474
D14: OR Facility, Rail, Corn | E14: 1900 | F14: miles | H14: Metric Ton (MT) | I14: 1e-06 | J14: 0.001 | K14: 1 | L14: 0.00045359237 | M14: 0.90718474
D15: OR Facility, Truck, Sorghum | E15: 50 | F15: miles | H15: Pound (lb) | I15: 0.002204622622 | J15: 2.204622622 | K15: 2204.622622 | L15: 1 | M15: 2000
D16: OR Facility, Rail, Sorghum | E16: 1900 | F16: miles | H16: Short Ton (US Ton) | I16: 1.102311311e-06 | J16: 0.001102311311 | K16: 1.102311311 | L16: 0.0005 | M16: 1
D17: 9 Midwest States Facility, Truck, Corn | E17: 40 | F17: miles | H17: Volume | I17: 1 m3 | J17: 1 ml | K17: 1 L | L17: 1 gal | M17: 1 ft3
D18: 9 Midwest States Facility, Truck, Sorghum | E18: 80 | F18: miles | H18: Cubic Meter (m3) | I18: 1 | J18: 1e-06 | K18: 0.001 | L18: 0.003785411 | M18: 0.028316847
D19: 9 Midwest States Facility, Rail, Corn | E19: 40 | F19: miles | H19: Milliliter (ml) | I19: 1000000 | J19: 1 | K19: 1000 | L19: 3785.411 | M19: 28316.847
D20: 9 Midwest States Facility, Rail, Sorghum | E20: 80 | F20: miles | H20: Liter (L) | I20: 1000 | J20: 0.001 | K20: 1 | L20: 3.785411 | M20: 28.316847
C21: Sorghum Transport | D21: Transport Loss Factor | E21: 1.020408163 | F21: %W/%W | H21: Gallon (gal) | I21: 264.1721071 | J21: 0.0002641721071 | K21: 0.2641721071 | L21: 1 | M21: 7.480521138
C22: Transport Emissions | D22: Medium Heavy-Duty Truck | E22: 9.876557324 | F22: gCO2e/bushel-mile | H22: Cubic Foot (ft3) | I22: 35.31466621 | J22: 3.531466621e-05 | K22: 0.03531466621 | L22: 0.1336805259 | M22: 1
D23: Heavy Heavy-Duty Truck, Corn | E23: 4.879357927 | F23: gCO2e/bushel-mile
D24: Heavy Heavy-Duty Truck, Sorghum | E24: 4.879357927 | F24: gCO2e/bushel-mile
D25: Rail | E25: 0.7274622259 | F25: gCO2e/bushel-mile
B26: Fuel Production | C26: Process Fuel | D26: Natural Gas Combustion in Boiler | E26: 75495.75125 | F26: gCO2e/MMBtu NG (LHV)
C27: Chemicals and Enzymes | D27: Chemicals | E27: 2.02 | F27: gCO2e/MJ ethanol (LHV)
D28: Cellulosic Enzymes Used | E28: 525.371098 | F28: gCO2e/lb enzyme (normalized)
C29: Coproducts | D29: Default Distiller's Oil Moisture Content | E29: 0.01 | F29: %W/%W
C30: Evaporative Emissions | D30: Standard Value | E30: 0.08669474691 | F30: gCO2e/MJ EtOH
C31: Denaturant | D31: Default Blend Value | E31: 0.025 | F31: %V/%V
B32: Denatured Ethanol Transport | C32: Fuel Production Facility to Terminal | D32: Heavy Heavy-Duty Truck | E32: 0.5739704086 | F32: gCO2e/gal-mile
D33: Rail | E33: 0.08557310148 | F33: gCO2e/gal-mile
D34: Barge | E34: 0.1395447075 | F34: gCO2e/gal-mile
C35: Terminal to Fueling Station | D35: Heavy Heavy-Duty Truck | E35: 0.5739704086 | F35: gCO2e/gal-mile
D36: Standard Distance | E36: 90 | F36: miles
D37: Loss Factor | E37: 1.000504498 | F37: %V/%V
B38: Grid Electricity | C38: 2021 eGRID Region (ORMX from Oregon 2021 Data) | F38: gCO2e/kWh
D39: ORMX | E39: 403.0760263
D40: AKMS | E40: 305.0595453
D41: AZNM | E41: 452.5979964
D42: CAMX | E42: 329.315509
D43: ERCT | E43: 470.4603747
D44: FRCC | E44: 500.0897813
D45: HIMS | E45: 729.769644
D46: HIOA | E46: 993.0409075
D47: MROE | E47: 835.1729646
D48: MROW | E48: 522.2755266
D49: NEWE | E49: 343.9333755
D50: NWPP | E50: 341.7320862
D51: NYCW | E51: 522.5910041
D52: AKGD | E52: 739.3736966
D53: NYUP | E53: 153.9203041
D54: PRMS | E54: 864.8480365
D55: RFCE | E55: 403.0232799
D56: RFCM | E56: 647.6560142
D57: RFCW | E57: 571.7384883
D58: RMPA | E58: 581.2447114
D59: SPNO | E59: 518.5779611
D60: SPSO | E60: 538.184671
D61: SRMV | E61: 480.1475905
D62: SRMW | E62: 820.1296942
D63: SRSO | E63: 508.7158303
D64: SRTV | E64: 503.5619942
D65: SRVC | E65: 370.789402
D66: Brazil | E66: 110.5727336
D67: Canada | E67: 142.5873345
D68: User Defined
